[Event "TUR-ch Youth U17 2019"]
[Site "Belek"]
[Date "2019.01.20"]
[Round "1"]
[White "Gunduz, Umut Erdem"]
[Black "Erol, Harun Eser"]
[Result "1-0"]
[ECO "C42"]
[WhiteElo "2255"]
[BlackElo "1464"]
[Annotator "ChessBase"]
[PlyCount "35"]
[EventDate "2019.01.20"]
[EventType "swiss"]
[EventCountry "TUR"]
[SourceTitle "playchess.com"]
[Source "ChessBase"]
[SourceQuality "1"]
[TimeControl "5400+30"]

1. e4 {[%emt 0:00:30]} e5 {[%emt 0:00:30]} 2. Nf3 {[%emt 0:00:00]} Nf6 {[%emt 0:00:00]} 3. Nxe5 {[%emt 0:02:00]} d6 {[%emt 0:00:00]} 4. Nf3 {[%emt 0:00:30]} Nxe4 {[%emt 0:00:30]} 5. Nc3 {[%emt 0:00:30]} Nf6 {[%emt 0:00:30]} 6. d4 {[%emt 0:09:30]} Bg4 {[%emt 0:10:30]} 7. Qe2+ {[%emt 0:01:30]} Qe7 {[%emt 0:00:30]} 8. Be3 {[%emt 0:00:30]} Nc6 {[%emt 0:01:30]} 9. O-O-O {[%emt 0:00:30]} O-O-O {[%emt 0:00:30]} 10. h3 {[%emt 0:00:30]} Bd7 {[%emt 0:04:30]} 11. d5 {[%emt 0:01:30]} Ne5 12. Bxa7 {[%emt 0:00:30]} Nxf3 {[%emt 0:10:00]} 13. Qxf3 {[%emt 0:00:00]} Re8 {[%emt 0:06:30]} 14. Bd4 {[%emt 0:05:00]} h5 {[%emt 0:04:30]} 15. Nb5 {[%emt 0:08:30]} Qe4 {[%emt 0:08:30]} 16. Qa3 {[%emt 0:02:30]} Bf5 {[%emt 0:01:30]} 17. Bd3 {[%emt 0:00:30]} Qxd5 {[%emt 0:00:30]} 18. Qa5 {[%emt 0:02:30]} 1-0

[Event "TUR-ch Youth U17 2019"]
[Site "Belek"]
[Date "2019.01.20"]
[Round "1"]
[White "Aytekin, Murat Eren"]
[Black "Aydemir, Cem"]
[Result "1-0"]
[ECO "D47"]
[WhiteElo "2163"]
[BlackElo "1581"]
[Annotator "ChessBase"]
[PlyCount "69"]
[EventDate "2019.01.20"]
[EventType "swiss"]
[EventCountry "TUR"]
[SourceTitle "playchess.com"]
[Source "ChessBase"]
[SourceQuality "1"]
[TimeControl "5400+30"]

1. d4 {[%emt 0:00:30]} d5 {[%emt 0:00:30]} 2. c4 {[%emt 0:00:00]} c6 {[%emt 0:00:00]} 3. Nf3 {[%emt 0:00:00]} e6 {[%emt 0:00:00]} 4. Nc3 {[%emt 0:00:30]} Nf6 {[%emt 0:00:30]} 5. e3 {[%emt 0:00:30]} Nbd7 {[%emt 0:00:30]} 6. Bd3 {[%emt 0:00:30]} dxc4 {[%emt 0:00:30]} 7. Bxc4 {[%emt 0:00:30]} b5 {[%emt 0:00:30]} 8. Bd3 {[%emt 0:00:30]} Bb7 {[%emt 0:00:30]} 9. O-O {[%emt 0:00:00]} Bd6 {[%emt 0:08:30]} 10. e4 {[%emt 0:18:00]} e5 {[%emt 0:01:30]} 11. d5 {[%emt 0:07:30]} b4 {[%emt 0:38:30]} 12. dxc6 {[%emt 0:08:30]} Bxc6 {[%emt 0:00:30]} 13. Bb5 {[%emt 0:11:30]} Qc7 {[%emt 0:09:30]} 14. Nd5 {[%emt 0:12:30]} Bxd5 {[%emt 0:04:30]} 15. Bxd7+ {[%emt 0:07:30]} Kxd7 {[%emt 0:10:30]} 16. exd5 {[%emt 0:01:30]} e4 {[%emt 0:10:20]} 17. Nd4 {[%emt 0:04:30]} Bxh2+ {[%emt 0:03:10]} 18. Kh1 {[%emt 0:00:00]} h5 {[%emt 0:05:23]} 19. Qa4+ {[%emt 0:02:00]} Kd8 {[%emt 0:02:52]} 20. Bg5 {[%emt 0:01:30]} Bd6 {[%emt 0:01:12]} 21. Rac1 {[%emt 0:07:12]} Qd7 {[%emt 0:00:13]} 22. Qa6 {[%emt 0:01:59]} h4 {[%emt 0:00:46]} 23. Rc6 {[%emt 0:00:48]} Be5 {[%emt 0:00:24]} 24. Rc4 {[%emt 0:08:11]} h3 {[%emt 0:00:30]} 25. g3 {[%emt 0:00:35]} Bxd4 {[%emt 0:00:54]} 26. Rxd4 {[%emt 0:00:06]} Qf5 {[%emt 0:00:04]} 27. Qd6+ {[%emt 0:00:56]} Ke8 {[%emt 0:00:40]} 28. Qc6+ {[%emt 0:00:10]} Ke7 {[%emt 0:00:31]} 29. d6+ {[%emt 0:00:21]} Ke6 {[%emt 0:00:47]} 30. d7+ {[%emt 0:00:10]} Ke7 {[%emt 0:00:00]} 31. Bxf6+ {[%emt 0:00:44]} gxf6 {[%emt 0:00:20]} 32. Rxe4+ {[%emt 0:00:14]} Kf8 {[%emt 0:00:46]} 33. Qxa8+ {[%emt 0:01:03]} Kg7 {[%emt 0:00:04]} 34. Re8 {[%emt 0:00:00]} Qb5 {[%emt 0:01:02]} 35. Rfe1 {[%emt 0:00:11]} 1-0

[Event "TUR-ch Youth U17 2019"]
[Site "Belek"]
[Date "2019.01.20"]
[Round "1"]
[White "Kocyigit, Buse Naz"]
[Black "Barutcu, Sevil"]
[Result "1-0"]
[ECO "D00"]
[WhiteElo "2043"]
[BlackElo "1340"]
[Annotator "NA"]
[PlyCount "73"]
[EventDate "2019.01.20"]
[EventType "swiss"]
[EventCountry "TUR"]
[SourceTitle "playchess.com"]
[Source "ChessBase"]
[SourceQuality "1"]
[TimeControl "5400+30"]

1. d4 {[%emt 0:00:30]} Nf6 {[%emt 0:00:30]} 2. Bg5 {[%emt 0:00:00]} d5 {[%emt 0:00:00]} 3. Bxf6 {[%emt 0:00:00]} exf6 {[%emt 0:00:00]} 4. e3 {[%emt 0:00:00]} Bd6 {[%emt 0:00:30]} 5. g3 {[%emt 0:02:00]} O-O {[%emt 0:00:30]} 6. Bg2 {[%emt 0:00:30]} c6 {[%emt 0:00:30]} 7. Ne2 {[%emt 0:00:30]} Be6 {[%emt 0:00:30]} 8. O-O {[%emt 0:00:30]} Nd7 {[%emt 0:00:30]} 9. Nd2 {[%emt 0:02:30]} a5 {[%emt 0:05:30]} 10. e4 {[%emt 0:09:30]} dxe4 {[%emt 0:12:30]} 11. Nxe4 {[%emt 0:01:30]} Bc7 {[%emt 0:00:30]} 12. b3 {[%emt 0:04:30]} f5 {[%emt 0:05:30]} 13. Nd2 {[%emt 0:03:30]} Nf6 {[%emt 0:07:30]} 14. c4 {[%emt 0:03:30]} Re8 {[%emt 0:14:30]} 15. Nb1 {[%emt 0:17:30]} Qd7 {[%emt 0:07:30]} 16. Nbc3 {[%emt 0:03:30]} Rad8 {[%emt 0:01:30]} 17. Qc1 {[%emt 0:28:30]} Qc8 {[%emt 0:20:59]} 18. Rd1 {[%emt 0:01:24]} Bb6 {[%emt 0:11:05]} 19. c5 {[%emt 0:06:27]} Bc7 {[%emt 0:01:16]} 20. Qb2 {[%emt 0:00:20]} Rd7 {[%emt 0:01:15]} 21. a3 {[%emt 0:01:57]} Red8 {[%emt 0:04:52]} 22. b4 {[%emt 0:02:26]} Nd5 {[%emt 0:00:54]} 23. Na4 {[%emt 0:08:13]} Re8 {[%emt 0:02:04]} 24. b5 {[%emt 0:01:13]} cxb5 {[%emt 0:01:02]} 25. Qxb5 {[%emt 0:00:02]} Ree7 {[%emt 0:00:06]} 26. Rac1 {[%emt 0:01:23]} Rd8 {[%emt 0:00:32]} 27. Nec3 {[%emt 0:00:53]} Qb8 {[%emt 0:01:16]} 28. Nxd5 {[%emt 0:00:27]} Bxd5 {[%emt 0:00:09]} 29. Bxd5 {[%emt 0:00:30]} Rxd5 {[%emt 0:00:00]} 30. Nc3 {[%emt 0:00:00]} Rd8 {[%emt 0:00:00]} 31. d5 {[%emt 0:00:34]} Be5 {[%emt 0:01:09]} 32. d6 {[%emt 0:01:18]} Red7 {[%emt 0:00:02]} 33. Qxa5 {[%emt 0:00:20]} Qc8 {[%emt 0:01:25]} 34. Nb5 {[%emt 0:00:30]} Qc6 {[%emt 0:00:04]} 35. Nd4 {[%emt 0:00:30]} Bxd4 {[%emt 0:01:01]} 36. Rxd4 {[%emt 0:00:02]} Rxd6 {[%emt 0:00:13]} 37. Qxd8+ {[%emt 0:00:15]} 1-0

[Event "TUR-ch Youth U17 2019"]
[Site "Belek"]
[Date "2019.01.20"]
[Round "1"]
[White "Sahin, Hayrun Nisa"]
[Black "Hicdurmaz, Simge"]
[Result "1-0"]
[ECO "C48"]
[WhiteElo "1743"]
[BlackElo "1057"]
[Annotator "NA"]
[PlyCount "91"]
[EventDate "2019.01.20"]
[EventType "swiss"]
[EventCountry "TUR"]
[SourceTitle "playchess.com"]
[Source "ChessBase"]
[SourceQuality "1"]
[TimeControl "5400+30"]

1. e4 {[%emt 0:00:00]} e5 {[%emt 0:00:00]} 2. Nf3 {[%emt 0:00:00]} Nc6 {[%emt 0:00:00]} 3. Nc3 {[%emt 0:00:30]} Nf6 {[%emt 0:00:30]} 4. Bb5 {[%emt 0:00:30]} a6 {[%emt 0:00:30]} 5. Bxc6 {[%emt 0:00:30]} bxc6 {[%emt 0:00:30]} 6. Nxe5 {[%emt 0:00:30]} Qe7 {[%emt 0:00:30]} 7. d4 {[%emt 0:00:30]} Qe6 {[%emt 0:04:30]} 8. O-O {[%emt 0:06:30]} Bb4 {[%emt 0:07:30]} 9. Nd3 {[%emt 0:08:30]} Bxc3 {[%emt 0:08:30]} 10. bxc3 {[%emt 0:00:30]} O-O {[%emt 0:00:30]} 11. f3 {[%emt 0:06:30]} Qc4 {[%emt 0:08:30]} 12. Qe1 {[%emt 0:05:30]} d6 {[%emt 0:04:30]} 13. a4 {[%emt 0:08:30]} a5 {[%emt 0:02:30]} 14. Nb2 {[%emt 0:12:30]} Qe6 {[%emt 0:03:30]} 15. c4 {[%emt 0:00:30]} Ba6 {[%emt 0:11:30]} 16. Qc3 {[%emt 0:03:30]} d5 {[%emt 0:20:30]} 17. e5 {[%emt 0:09:30]} Nd7 {[%emt 0:01:30]} 18. cxd5 {[%emt 0:00:30]} Qxd5 {[%emt 0:01:30]} 19. Nd3 {[%emt 0:04:30]} Bxd3 {[%emt 0:02:30]} 20. cxd3 {[%emt 0:02:30]} Rfb8 {[%emt 0:00:00]} 21. Ra3 {[%emt 0:04:30]} Rb4 {[%emt 0:01:00]} 22. Be3 {[%emt 0:00:30]} Rab8 {[%emt 0:00:40]} 23. Rc1 {[%emt 0:00:30]} R8b6 {[%emt 0:02:25]} 24. Qc2 {[%emt 0:03:30]} Rb2 {[%emt 0:03:20]} 25. Qc4 {[%emt 0:00:30]} Rb1 {[%emt 0:03:33]} 26. Rac3 {[%emt 0:01:30]} Qxc4 {[%emt 0:06:57]} 27. Rxc4 {[%emt 0:00:30]} Rxc1+ {[%emt 0:00:30]} 28. Rxc1 {[%emt 0:00:30]} Nb8 {[%emt 0:00:16]} 29. Bd2 {[%emt 0:00:32]} Rb7 {[%emt 0:01:02]} 30. Rc5 {[%emt 0:00:52]} Ra7 {[%emt 0:03:13]} 31. Kf2 {[%emt 0:02:53]} Kf8 {[%emt 0:00:07]} 32. Rxa5 {[%emt 0:01:02]} Rxa5 {[%emt 0:00:30]} 33. Bxa5 {[%emt 0:00:30]} Na6 {[%emt 0:00:30]} 34. Ke3 {[%emt 0:00:00]} Ke7 {[%emt 0:00:00]} 35. Ke4 {[%emt 0:00:17]} Ke6 {[%emt 0:00:16]} 36. f4 {[%emt 0:00:11]} g6 {[%emt 0:00:07]} 37. g4 {[%emt 0:00:00]} c5 {[%emt 0:00:36]} 38. f5+ {[%emt 0:03:38]} Kd7 {[%emt 0:01:09]} 39. Bc3 {[%emt 0:00:26]} c6 {[%emt 0:01:08]} 40. d5 {[%emt 0:00:11]} gxf5+ {[%emt 0:01:29]} 41. gxf5 {[%emt 0:00:23]} Nc7 {[%emt 0:01:15]} 42. e6+ {[%emt 0:00:52]} fxe6 {[%emt 0:00:48]} 43. dxe6+ {[%emt 0:00:06]} Ke7 {[%emt 0:00:24]} 44. Ke5 {[%emt 0:00:12]} Nd5 {[%emt 0:00:30]} 45. Bd2 {[%emt 0:00:05]} Nb6 {[%emt 0:00:00]} 46. a5 {[%emt 0:00:26]} 1-0

[Event "TUR-ch Youth U17 2019"]
[Site "Belek"]
[Date "2019.01.20"]
[Round "1"]
[White "Giray, Canberk"]
[Black "Acar, Utku Cengiz"]
[Result "0-1"]
[ECO "B22"]
[WhiteElo "1467"]
[BlackElo "2078"]
[Annotator "NA"]
[PlyCount "82"]
[EventDate "2019.01.20"]
[EventType "swiss"]
[EventCountry "TUR"]
[SourceTitle "playchess.com"]
[Source "ChessBase"]
[SourceQuality "1"]
[TimeControl "5400+30"]

1. e4 {[%emt 0:00:30]} c5 {[%emt 0:00:30]} 2. c3 {[%emt 0:00:30]} Nf6 {[%emt 0:00:30]} 3. e5 {[%emt 0:00:30]} Nd5 {[%emt 0:00:30]} 4. d4 {[%emt 0:00:30]} cxd4 {[%emt 0:00:30]} 5. Nf3 {[%emt 0:00:30]} e6 {[%emt 0:00:30]} 6. cxd4 {[%emt 0:00:30]} d6 {[%emt 0:02:30]} 7. a3 {[%emt 0:04:30]} Nc6 {[%emt 0:09:30]} 8. Bd3 {[%emt 0:03:30]} dxe5 {[%emt 0:07:30]} 9. dxe5 {[%emt 0:00:30]} g6 {[%emt 0:00:30]} 10. O-O {[%emt 0:12:30]} Bg7 {[%emt 0:06:30]} 11. Re1 {[%emt 0:03:30]} O-O {[%emt 0:04:30]} 12. b4 {[%emt 0:13:30]} a6 {[%emt 0:13:30]} 13. Qb3 {[%emt 0:05:30]} b5 {[%emt 0:04:30]} 14. Bb2 {[%emt 0:05:30]} Nb6 {[%emt 0:07:30]} 15. Nbd2 {[%emt 0:08:30]} Na4 {[%emt 0:07:30]} 16. Be4 {[%emt 0:10:30]} Bb7 {[%emt 0:02:30]} 17. Rac1 {[%emt 0:13:22]} Nxb2 {[%emt 0:15:42]} 18. Qxb2 {[%emt 0:00:36]} Qb6 {[%emt 0:00:22]} 19. Nb3 {[%emt 0:01:19]} Ne7 {[%emt 0:01:35]} 20. Bxb7 {[%emt 0:01:52]} Qxb7 {[%emt 0:00:30]} 21. Nc5 {[%emt 0:00:00]} Qa7 {[%emt 0:00:07]} 22. Qe2 {[%emt 0:05:46]} Nd5 {[%emt 0:02:11]} 23. g3 {[%emt 0:00:45]} Rfc8 {[%emt 0:03:20]} 24. Nd2 {[%emt 0:01:19]} a5 {[%emt 0:05:31]} 25. Qxb5 {[%emt 0:03:12]} axb4 {[%emt 0:00:03]} 26. axb4 {[%emt 0:00:00]} Rab8 {[%emt 0:00:37]} 27. Qa6 {[%emt 0:00:37]} Qxa6 {[%emt 0:02:36]} 28. Nxa6 {[%emt 0:00:30]} Rxc1 {[%emt 0:00:00]} 29. Rxc1 {[%emt 0:00:01]} Ra8 {[%emt 0:00:00]} 30. b5 {[%emt 0:00:55]} Bxe5 {[%emt 0:00:00]} 31. Nf3 {[%emt 0:00:18]} Bf6 {[%emt 0:01:21]} 32. Kf1 {[%emt 0:00:41]} Nc3 {[%emt 0:01:01]} 33. Nc7 {[%emt 0:02:22]} Ra2 {[%emt 0:00:05]} 34. Ne8 {[%emt 0:00:26]} Bh8 {[%emt 0:01:06]} 35. Ne1 {[%emt 0:01:09]} Kf8 {[%emt 0:00:52]} 36. Nd6 {[%emt 0:00:27]} Ke7 {[%emt 0:00:53]} 37. Nc4 {[%emt 0:00:19]} Nxb5 {[%emt 0:01:01]} 38. Rc2 {[%emt 0:00:21]} Ra1 {[%emt 0:00:21]} 39. Ne3 {[%emt 0:01:21]} Bc3 {[%emt 0:00:34]} 40. N3g2 {[%emt 0:00:53]} Ba5 {[%emt 0:00:31]} 41. f4 {[%emt 0:00:14]} Nd4 {[%emt 0:00:17]} 0-1

[Event "TUR-ch Youth U17 2019"]
[Site "Belek"]
[Date "2019.01.20"]
[Round "1"]
[White "Soyumez, Ilayda"]
[Black "Catal, Uktenur"]
[Result "0-1"]
[ECO "E17"]
[WhiteElo "1404"]
[BlackElo "1854"]
[Annotator "NA"]
[PlyCount "72"]
[EventDate "2019.01.20"]
[EventType "swiss"]
[EventCountry "TUR"]
[SourceTitle "playchess.com"]
[Source "ChessBase"]
[SourceQuality "1"]
[TimeControl "5400+30"]

1. d4 {[%emt 0:00:30]} e6 {[%emt 0:00:00]} 2. c4 {[%emt 0:00:30]} Nf6 {[%emt 0:00:00]} 3. Nf3 {[%emt 0:00:30]} b6 {[%emt 0:00:30]} 4. g3 {[%emt 0:00:30]} Bb7 {[%emt 0:00:30]} 5. Bg2 {[%emt 0:00:30]} Be7 {[%emt 0:00:30]} 6. O-O {[%emt 0:00:30]} O-O {[%emt 0:00:30]} 7. Nbd2 {[%emt 0:06:30]} d5 {[%emt 0:02:30]} 8. Ne5 {[%emt 0:06:30]} Nbd7 {[%emt 0:00:30]} 9. b3 {[%emt 0:10:30]} Nxe5 {[%emt 0:06:30]} 10. dxe5 {[%emt 0:01:30]} Nd7 {[%emt 0:00:30]} 11. Bb2 {[%emt 0:00:30]} c5 {[%emt 0:15:30]} 12. cxd5 {[%emt 0:14:30]} exd5 {[%emt 0:00:30]} 13. e3 {[%emt 0:05:30]} Qc7 {[%emt 0:06:30]} 14. e6 {[%emt 0:14:30]} fxe6 {[%emt 0:06:30]} 15. Qg4 {[%emt 0:02:30]} Bf6 {[%emt 0:01:30]} 16. Qxe6+ {[%emt 0:03:30]} Kh8 {[%emt 0:01:30]} 17. Rab1 {[%emt 0:02:30]} Rae8 {[%emt 0:07:30]} 18. Qg4 {[%emt 0:04:30]} Ba6 {[%emt 0:04:30]} 19. Bxf6 {[%emt 0:11:47]} Nxf6 {[%emt 0:00:30]} 20. Qg5 {[%emt 0:03:59]} Bxf1 {[%emt 0:00:00]} 21. Rxf1 {[%emt 0:00:08]} Qe5 {[%emt 0:07:00]} 22. Qxe5 {[%emt 0:02:45]} Rxe5 {[%emt 0:00:30]} 23. Rd1 {[%emt 0:01:03]} g6 {[%emt 0:01:30]} 24. Nf3 {[%emt 0:00:39]} Re7 {[%emt 0:00:30]} 25. Ne1 {[%emt 0:04:35]} Rd8 {[%emt 0:09:30]} 26. Nc2 {[%emt 0:00:44]} d4 {[%emt 0:01:30]} 27. exd4 {[%emt 0:00:59]} Re2 {[%emt 0:00:30]} 28. Ne3 {[%emt 0:00:46]} Rxd4 {[%emt 0:00:30]} 29. Rxd4 {[%emt 0:00:33]} cxd4 {[%emt 0:00:00]} 30. Nc4 {[%emt 0:00:48]} Rxa2 {[%emt 0:00:00]} 31. Bc6 {[%emt 0:00:07]} d3 {[%emt 0:00:30]} 32. Bf3 {[%emt 0:00:17]} b5 {[%emt 0:00:30]} 33. Ne3 {[%emt 0:00:45]} Rb2 {[%emt 0:00:30]} 34. Bd1 {[%emt 0:00:00]} Ne4 {[%emt 0:00:30]} 35. Kf1 {[%emt 0:00:54]} Rxf2+ {[%emt 0:00:30]} 36. Ke1 {[%emt 0:00:30]} d2# {[%emt 0:00:00]} 0-1

[Event "TUR-ch Youth U17 2019"]
[Site "Belek"]
[Date "2019.01.20"]
[Round "1"]
[White "Altay, Servet Hakan"]
[Black "Cansun, Can Alp"]
[Result "0-1"]
[ECO "B48"]
[WhiteElo "1361"]
[BlackElo "2174"]
[Annotator "ChessBase"]
[PlyCount "66"]
[EventDate "2019.01.20"]
[EventType "swiss"]
[EventCountry "TUR"]
[SourceTitle "playchess.com"]
[Source "ChessBase"]
[SourceQuality "1"]
[TimeControl "5400+30"]

1. e4 {[%emt 0:00:30]} c5 {[%emt 0:00:30]} 2. Nf3 {[%emt 0:00:00]} e6 {[%emt 0:00:00]} 3. d4 {[%emt 0:00:00]} cxd4 {[%emt 0:00:00]} 4. Nxd4 {[%emt 0:00:00]} a6 {[%emt 0:00:00]} 5. Be3 {[%emt 0:01:00]} Nf6 {[%emt 0:00:00]} 6. f3 {[%emt 0:00:30]} Qc7 {[%emt 0:00:30]} 7. Qd2 {[%emt 0:06:30]} Nc6 {[%emt 0:04:30]} 8. Nc3 {[%emt 0:01:30]} b5 {[%emt 0:03:30]} 9. Be2 {[%emt 0:06:30]} Bb7 {[%emt 0:01:30]} 10. a3 {[%emt 0:05:30]} Ne5 {[%emt 0:08:30]} 11. g4 {[%emt 0:17:30]} h6 {[%emt 0:06:30]} 12. Bf4 {[%emt 0:02:30]} b4 {[%emt 0:07:30]} 13. axb4 {[%emt 0:02:30]} Bxb4 {[%emt 0:00:30]} 14. Ra4 {[%emt 0:06:30]} Bc5 {[%emt 0:04:30]} 15. Bxe5 {[%emt 0:12:30]} Qxe5 {[%emt 0:00:30]} 16. Nb3 {[%emt 0:09:30]} Ba7 {[%emt 0:22:30]} 17. Na5 {[%emt 0:06:07]} Bc6 {[%emt 0:03:30]} 18. Nxc6 {[%emt 0:07:00]} dxc6 {[%emt 0:00:30]} 19. Bxa6 {[%emt 0:00:10]} O-O {[%emt 0:05:30]} 20. f4 {[%emt 0:04:24]} Qc5 {[%emt 0:01:30]} 21. h3 {[%emt 0:02:07]} Rfd8 {[%emt 0:01:30]} 22. Qe2 {[%emt 0:00:12]} Rab8 {[%emt 0:01:30]} 23. Bd3 {[%emt 0:06:40]} Rxb2 {[%emt 0:00:30]} 24. Kd2 {[%emt 0:01:09]} Qb6 {[%emt 0:08:04]} 25. Rb1 {[%emt 0:00:45]} Rxb1 {[%emt 0:01:01]} 26. Nxb1 {[%emt 0:00:01]} Qxb1 {[%emt 0:07:46]} 27. Rxa7 {[%emt 0:00:02]} Qb4+ {[%emt 0:01:46]} 28. Kc1 {[%emt 0:00:10]} c5 {[%emt 0:00:28]} 29. Ra2 {[%emt 0:02:03]} Qd4 {[%emt 0:01:23]} 30. Kb1 {[%emt 0:00:37]} Rb8+ {[%emt 0:00:29]} 31. Kc1 {[%emt 0:00:04]} c4 {[%emt 0:01:00]} 32. Bxc4 {[%emt 0:00:04]} Nxe4 {[%emt 0:00:00]} 33. c3 {[%emt 0:01:22]} Qxc3+ {[%emt 0:00:51]} 0-1

[Event "TUR-ch Youth U17 2019"]
[Site "Belek"]
[Date "2019.01.20"]
[Round "1"]
[White "Catalkaya, Emine Damla"]
[Black "Sen, Irem"]
[Result "0-1"]
[ECO "D11"]
[WhiteElo "1063"]
[BlackElo "1765"]
[Annotator "NA"]
[PlyCount "54"]
[EventDate "2019.01.20"]
[EventType "swiss"]
[EventCountry "TUR"]
[SourceTitle "playchess.com"]
[Source "ChessBase"]
[SourceQuality "1"]
[TimeControl "5400+30"]

1. Nf3 {[%emt 0:00:30]} d5 {[%emt 0:00:30]} 2. d4 {[%emt 0:00:00]} Nf6 {[%emt 0:00:30]} 3. g3 {[%emt 0:00:00]} c6 {[%emt 0:01:30]} 4. Bg2 {[%emt 0:00:30]} Bf5 {[%emt 0:00:30]} 5. Nbd2 {[%emt 0:00:30]} h6 {[%emt 0:00:30]} 6. b3 {[%emt 0:00:30]} e6 {[%emt 0:00:30]} 7. O-O {[%emt 0:00:30]} Bd6 {[%emt 0:04:30]} 8. c4 {[%emt 0:01:30]} O-O {[%emt 0:10:30]} 9. Bb2 {[%emt 0:00:00]} Nbd7 {[%emt 0:05:30]} 10. Rc1 {[%emt 0:02:00]} Bh7 {[%emt 0:04:30]} 11. Re1 {[%emt 0:01:30]} Re8 {[%emt 0:17:30]} 12. c5 {[%emt 0:10:30]} Bc7 {[%emt 0:02:30]} 13. Nb1 {[%emt 0:01:30]} Ne4 {[%emt 0:10:30]} 14. Nc3 {[%emt 0:05:30]} e5 {[%emt 0:02:30]} 15. Nxe4 {[%emt 0:02:30]} dxe4 {[%emt 0:00:30]} 16. Nd2 {[%emt 0:00:30]} exd4 {[%emt 0:09:30]} 17. Bxd4 {[%emt 0:00:30]} Qe7 {[%emt 0:01:30]} 18. Rc4 {[%emt 0:10:30]} f5 {[%emt 0:01:30]} 19. Qc1 {[%emt 0:11:30]} Rad8 {[%emt 0:03:30]} 20. Rb4 {[%emt 0:03:30]} b5 {[%emt 0:03:39]} 21. cxb6 {[%emt 0:00:30]} Qxb4 {[%emt 0:05:52]} 22. bxc7 {[%emt 0:00:30]} Rc8 {[%emt 0:00:27]} 23. Qc4+ {[%emt 0:00:00]} Qxc4 {[%emt 0:00:00]} 24. Nxc4 {[%emt 0:00:00]} Rxc7 {[%emt 0:00:13]} 25. Rc1 {[%emt 0:00:30]} c5 {[%emt 0:02:04]} 26. Nd6 {[%emt 0:01:30]} Re6 {[%emt 0:01:00]} 27. Nb5 {[%emt 0:01:30]} Rb7 {[%emt 0:00:45]} 0-1

[Event "TUR-ch Youth U17 2019"]
[Site "Belek"]
[Date "2019.01.21"]
[Round "2"]
[White "Cansun, Can Alp"]
[Black "Nukan, Baris Tuna"]
[Result "1-0"]
[ECO "A90"]
[WhiteElo "2174"]
[BlackElo "1710"]
[Annotator "NA"]
[PlyCount "97"]
[EventDate "2019.01.20"]
[EventType "swiss"]
[EventCountry "TUR"]
[SourceTitle "playchess.com"]
[Source "ChessBase"]
[SourceQuality "1"]
[TimeControl "5400+30"]

1. d4 f5 {[%emt 0:00:30]} 2. g3 {[%emt 0:00:30]} Nf6 {[%emt 0:00:30]} 3. Bg2 {[%emt 0:00:00]} e6 {[%emt 0:00:00]} 4. c4 {[%emt 0:00:00]} d5 {[%emt 0:00:30]} 5. Nf3 {[%emt 0:00:30]} c6 {[%emt 0:00:30]} 6. O-O {[%emt 0:00:30]} Bd6 {[%emt 0:01:30]} 7. b3 {[%emt 0:00:30]} Qe7 {[%emt 0:01:30]} 8. Bb2 {[%emt 0:00:30]} O-O {[%emt 0:00:30]} 9. Qc1 {[%emt 0:00:30]} Nbd7 {[%emt 0:01:30]} 10. Ba3 {[%emt 0:00:30]} Ne4 {[%emt 0:01:30]} 11. Bxd6 {[%emt 0:00:30] LiveBook: 4 Games} Qxd6 {[%emt 0:00:30]} 12. Qa3 {[%emt 0:04:30] A90: Dutch Defence: Miscellaneous and Modern Stonewall (with ...Bd6)} (12. Nbd2 b6 13. Qb2 Bb7 14. Rac1 Rac8 15. Rfd1 Rfd8 16. e3 Qe7 17. Ne1 Ba8 18. Nd3 Qd6 19. b4 Qe7 {0-1 (67) Ivanchuk,V (2711)-Radjabov,T (2610) Moscow 2002}) 12... b6 {[%emt 0:12:30]} 13. Rc1 $146 {[%emt 0:05:30]} ({Predecessor:} 13. Qxd6 Nxd6 14. Nbd2 Bb7 15. Rac1 Rfe8 16. e3 Rac8 17. Rfd1 Nf7 18. Ne1 g5 19. Nd3 Kg7 {½-½ (48) Praveen Kumar,C (2338)-Negi,V (2062) New Delhi 2012}) 13... c5 {[%emt 0:03:30]} 14. Nc3 {[%emt 0:17:30]} (14. Rc3 {[%emt 0:17:30]}) (14. e3 $11 {keeps the balance.}) 14... Nxc3 {[%emt 0:00:30]} 15. Rxc3 {[%emt 0:00:30]} Bb7 {[%emt 0:00:30]} 16. cxd5 {[%emt 0:10:30]} Bxd5 {[%emt 0:40:00]} 17. Rd1 {[%emt 0:47:30]} Qb8 {[%emt 0:04:30]} 18. Ng5 {[%emt 0:17:30]} Bxg2 {[%emt 0:14:30]} 19. Kxg2 {[%emt 0:00:30]} Qb7+ {[%emt 0:00:30]} 20. Kg1 {[%emt 0:00:30]} Rfe8 {[%emt 0:00:30]} 21. Re3 {[%emt 0:00:30]} Qc6 {[%emt 0:00:30]} 22. Rxe6 {[%emt 0:00:30]} Qd5 {[%emt 0:00:30]} 23. Rxe8+ {[%emt 0:00:30]} Rxe8 {[%emt 0:00:30]} 24. Qb2 {[%emt 0:00:30]} f4 {[%emt 0:00:30]} 25. gxf4 {[%emt 0:19:49]} Qf5 {[%emt 0:27:48]} 26. dxc5 {[%emt 0:05:54]} Qxf4 {[%emt 0:06:23]} 27. Qd2 {[%emt 0:02:31]} ({Don't do} 27. Rxd7 $6 Qg4+ {[%mdl 64] Double Attack} 28. Kf1 Qxd7 $14) 27... Qxd2 {[%emt 0:00:47]} 28. Rxd2 {[%emt 0:00:30]} Nxc5 {[%emt 0:00:00]} 29. b4 {[%emt 0:00:56]} Ne4 {[%emt 0:01:22]} 30. Nxe4 {[%emt 0:00:32]} Rxe4 {[%emt 0:00:04]} 31. Rd8+ {[%emt 0:02:21]} Kf7 {[%emt 0:00:00]} 32. Rd7+ {[%emt 0:00:06]} Kf6 {[%emt 0:00:53]} 33. e3 {[%emt 0:00:52]} Rxb4 {[%emt 0:00:44]} 34. Rxa7 {[%emt 0:00:02]} h5 {[%emt 0:02:34]} 35. Kg2 {[%emt 0:00:28]} g5 {[%emt 0:00:57]} 36. h3 {[%emt 0:01:01]} Rb2 {[%emt 0:01:06]} 37. Kf3 {[%emt 0:00:54]} Kf5 $14 {[%emt 0:01:18]} 38. Ra3 {[%emt 0:02:25]} g4+ {[%emt 0:02:30]} 39. hxg4+ {[%emt 0:00:30]} hxg4+ {[%emt 0:00:30]} 40. Kg3 {[%emt 0:00:00]} b5 {[%emt 0:00:17]} 41. Rb3 {[%emt 0:01:06]} Rxb3 {[%emt 0:01:15]} 42. axb3 {[%emt 0:00:03]} b4 {[%emt 0:00:00]} 43. Kh4 {[%emt 0:00:37]} Ke4 {[%emt 0:00:05]} 44. Kxg4 {[%emt 0:00:09]} Kd3 {[%emt 0:00:30]} 45. f4 {[%emt 0:00:00]} Kc3 {[%emt 0:00:06]} 46. f5 {[%emt 0:00:00]} Kxb3 {[%emt 0:00:15]} 47. f6 {[%emt 0:00:14]} Kc2 {[%emt 0:00:30]} 48. f7 {[%emt 0:00:00]} b3 {[%emt 0:00:00]} 49. f8=Q {[%emt 0:00:00]} 1-0